Cogmind - Beta 17.1 @@@ ROGUE MODE // 2026.08.23 @ 10:12:26 Player: Scuttle Result: Destroyed by Autobeam Turret with Autobeam Performance ------------- Evolutions (0) 0 Regions Visited (2) 400 Robots Destroyed (31) 155 Value Destroyed (700) 700 Prototype IDs (4) 80 Alien Tech Used (0) 0 Bonus (6434) 6434 TOTAL SCORE: 7769 Bonus ------- Prayed to X0-1V1 5000 Major X0-1V1 Interference 1450 Friendly Fire -16 Cogmind --------- Core Integrity 0/150 Matter 278/300 Energy 199/200 System Corruption 0% Temperature Cool (6) Movement Rolling (120) Ox1 Location -10/Subcaves Parts ------- > --- POWER (1) -------- Subdweller Power Source > --- PROPULSION (2) --- Spiked Treads Subdweller Monowheel > --- UTILITY (2) ------ Large Storage Unit X0-1V1's Piety Tracker > --- WEAPON (2) ------- Subdweller Laser Subdweller Machine Gun > --- INVENTORY (15) --- Subdweller Monowheel Cooling System Cooling System Disposable Heat Sink High-capacity Matter Pod (30) Subdweller Optics Scrap Shield Subdweller Beam Cannon Light Assault Rifle Battle Rifle Light Cannon Mace Peak State ------------ > --- POWER ------------ Subdweller Power Source > --- PROPULSION ------- Spiked Treads Subdweller Monowheel > --- UTILITY ---------- Large Storage Unit X0-1V1's Piety Tracker > --- WEAPON ----------- Subdweller Laser Subdweller Machine Gun > --- INVENTORY -------- Ion Engine Subdweller Monowheel Subdweller Monowheel Cooling System Cooling System Disposable Heat Sink High-capacity Matter Pod Subdweller Optics Scrap Shield Subdweller Beam Cannon Light Assault Rifle Battle Rifle Light Cannon Mace [Rating: 26] Favorites ----------- Power Ion Engine Engine Ion Engine Propulsion Light Treads Treads Light Treads Wheel Subdweller Monowheel Utility Large Storage Unit Device X0-1V1's Piety Tracker Storage Large Storage Unit Weapon Light Cannon Energy Gun Medium Laser Energy Cannon Subdweller Beam Cannon Ballistic Gun Subdweller Machine Gun Ballistic Cannon Light Cannon Impact Weapon Mace Build | -11 -10 -10 ------- Run | Yrd Mat Sub Slots Evolved . | . . . Power . | . . . Propulsion . | . . . Utility . | . . . Weapon . | . . . Parts Attached 35 | 5 11 19 Power 7 | 1 2 4 Engine 7 | 1 2 4 Core . | . . . Reactor . | . . . Propulsion 10 | 2 2 6 Treads 5 | 2 2 1 Leg . | . . . Wheel 5 | . . 5 Hover . | . . . Flight . | . . . Utility 5 | . 4 1 Device 4 | . 3 1 Storage 1 | . 1 . Processor . | . . . Hackware . | . . . Protection . | . . . Artifact . | . . . Weapon 13 | 2 3 8 Energy Gun 3 | 1 . 2 Energy Cannon 1 | . . 1 Ballistic Gun 5 | 1 . 4 Ballistic Cannon 3 | . 2 1 Launcher . | . . . Special Weapon . | . . . Impact Weapon 1 | . 1 . Slashing Weapon . | . . . Piercing Weapon . | . . . Special Melee Weapon . | . . . Unidentified Prototypes 1 | . 1 . Parts Lost 9 | . 2 7 Power 2 | . . 2 Propulsion 2 | . . 2 Utility 1 | . 1 . Weapon 4 | . 1 3 Highest Loss Streak 4 | . 1 4 To Critical Strikes . | . . . Average Backups 6 | . 2 9 Power . | . 1 . Propulsion . | . . . Utility 3 | . . 4 Weapon 2 | . . 3 Tool/Special . | . . . Unused Backups 8 | . 1 7 Power 1 | . 1 . Propulsion 1 | . . 1 Utility 5 | . . 5 Weapon 1 | . . 1 Tool/Special . | . . . Average Slot Usage (%) 94 | . 90 96 Engine 13 | . 14 13 Treads 21 | . 28 17 Wheel 5 | . . 8 Device 12 | . 10 13 Storage 12 | . 9 14 Energy Gun 5 | . 9 2 Ballistic Gun 10 | . 7 12 Ballistic Cannon 10 | . 10 10 Peak Build Rating 26 | 5 19 26 Average Rating 14 | 3 7 19 On Entrance 8 | . 5 19 Avg Prop Armor Cover (%) 14 | . . 14 Naked Turns . | . . . Heaviest Build 38 | 6 33 38 Greatest Support 40 | 40 40 40 Greatest Overweight (x) 3 | . . 3 Average Overweight (x) . | . . . Largest Inventory Capacity 15 | 5 15 15 Average Capacity 13 | 5 11 15 Most Carried 15 | 1 6 15 Average Carried 6 | . 2 9 Final Capacity 15 | 5 15 15 Final Carried 13 | 1 6 13 Class Distribution -------------------- 73% | Mutant 19% | Derelict-Mutant 6% | Scavenger-Mutant Dominant Class ---------------- Mutant | -10/Materials Mutant | -10/Subcaves Resources | -11 -10 -10 ----------- Run | Yrd Mat Sub Matter Collected 1180 | 112 212 856 Remotely . | . . . Salvage Created 781 | . 365 416 Parts 55 | . 19 36 Haulers Intercepted 1 | . 1 . Recyclers Shooed . | . . . Parts Field Recycled . | . . . Retrieved Matter . | . . . Parts Self-Destructed 31 | . . 31 Prevented . | . . . Parts Restored . | . . . Kills | -11 -10 -10 ------- Run | Yrd Mat Sub Combat Hostiles Destroyed 28 | . 8 20 Guns 14 | . 6 8 Cannons 14 | . 2 12 Classes Destroyed 7 | . 5 2 Hauler 1 | . 1 . Recycler 1 | . 1 . Watcher 1 | . 1 . Swarmer 15 | . 3 12 Grunt 7 | . 5 2 Sentry 1 | . . 1 Subdweller 5 | . . 5 Best Kill Streak 4 | . 2 4 Combat Bots Only 4 | . 2 4 Max Kills in Single Turn 2 | . 1 2 Gunslinging . | . . . Exploded . | . . . Melee . | . . . Uniques/NPCs Destroyed . | . . . Combat | -11 -10 -10 -------- Run | Yrd Mat Sub Hostile Shots Fired 179 | . 61 118 Missed 49 | . 13 36 Hits 130 | . 48 82 Projectile 130 | . 48 82 Critical Strikes 3 | . 1 2 Damage Taken 1638 | . 614 1024 Core 283 | . 145 138 Absorbed by Shields . | . . . Core Remaining (%) 100 | 100 . . Volleys Fired 141 | . 41 100 Largest 2 | . 2 2 Hottest 105 | . 80 105 Shots Fired 270 | . 77 193 Gun 179 | . 66 113 Cannon 91 | . 11 80 Launcher . | . . . Special . | . . . Kinetic 184 | . 41 143 Thermal 86 | . 36 50 Explosive . | . . . Electromagnetic . | . . . Robot Hit Streak 25 | . 10 25 Robot Miss Streak 8 | . 5 8 Penetration Max . | . . . Secondary Targets 2 | . 1 1 Max Gunslinging Chain 1 | . 1 1 Shots Hit Robots 106 | . 44 62 Core Hits 41 | . 16 25 Critical Kills . | . . . Critical Parts Destroyed . | . . . Critical Strikes 3 | . 3 . Burn 2 | . 2 . Blast 1 | . 1 . Melee Attacks 1 | . 1 . Impact 1 | . 1 . Slashing . | . . . Piercing . | . . . Sneak Attacks . | . . . Combat Hostiles . | . . . Follow-up Attacks . | . . . Damage Inflicted 1965 | . 670 1295 Guns 945 | . 393 552 Cannons 916 | . 173 743 Explosions 98 | . 98 . Melee . | . . . Ramming 6 | . 6 . Kinetic 1308 | . 307 1001 Thermal 651 | . 357 294 Explosive . | . . . Electromagnetic . | . . . Impact . | . . . Slashing . | . . . Piercing . | . . . Highest Corruption 7 | . . 7 Average Corruption 7 | . . 7 Corruption Purged . | . . . Corruption Blocked . | . . . Overload Shots . | . . . Overflow Damage 68 | . 46 22 Projectiles 22 | . . 22 Explosions 46 | . 46 . Melee . | . . . Knockbacks 7 | . 4 3 Impact . | . . . Kinetic 7 | . 4 3 Secondary . | . . . Self-Inflicted Damage 116 | . 116 . Shots 2 | . 2 . Rammed 1 | . 1 . Targets Rammed 1 | . 1 . Kicked . | . . . Crushed . | . . . Highest Temperature 237 | . 200 237 Average Temperature 68 | . 81 30 Received Heat Transfer 399 | . 207 192 Siege Activations . | . . . Martial Activations . | . . . Shielding Activations . | . . . Robots Disrupted . | . . . Combat Hostiles . | . . . Robots Corrupted . | . . . Combat Hostiles . | . . . Parts Fried . | . . . Impact Corruptions . | . . . Robots Melted . | . . . Combat Hostiles . | . . . Parts Melted 4 | . 3 1 Heat Transferred 1323 | . 975 348 Parts Sabotaged . | . . . Parts Stolen . | . . . Parts Stripped . | . . . Power Chain Reactions . | . . . Alert | -11 -10 -10 ------- Run | Yrd Mat Sub Maximum Alert Level . | . . . Low Security (%) 100 | 100 100 . Level 1 . | . . . Level 2 . | . . . Level 3 . | . . . Level 4 . | . . . Level 5 . | . . . High Security . | . . . Max Security . | . . . Peak Influence 130 | . 130 . Initial . | . . . Average 56 | . 59 . Influence Increases 670 | . 370 300 Destroy 0b10 Robot/C 460 | . 160 300 Destroy 0b10 Robot/NC 15 | . 15 . Destroy Leader 34 | . 34 . Successful Hack 4 | . 4 . Disable Machine 45 | . 45 . Destroy Structure 52 | . 52 . Lose Combat Pursuer 60 | . 60 . Influence Decreases 670 | . 349 321 Entered New Map 11 | . . 11 Time Decay 595 | . 329 266 Lost Part 64 | . 20 44 Squads Dispatched 2 | . 2 . Investigation 1 | . 1 . Extermination . | . . . Reinforcement 1 | . 1 . Assault . | . . . Garrison . | . . . Intercept . | . . . Searches Triggered . | . . . Construction Impeded . | . . . Haulers Reinforced . | . . . Active Scanning Responses . | . . . Cargo Convoy Interrupts . | . . . Stealth | -11 -10 -10 --------- Run | Yrd Mat Sub Distress Signals 2 | . 2 . Communications Jammed . | . . . Distress Signals . | . . . Times Spotted 41 | . 15 26 Peak Tracking Total 6 | . 6 5 Tactical Retreats 2 | . 2 . Traps | -11 -10 -10 ------- Run | Yrd Mat Sub Traps Triggered 2 | . 1 1 Indirectly . | . . . Trap Hack Attempts . | . . . Triggered . | . . . Disarmed . | . . . Reprogrammed . | . . . Reused . | . . . Traps Extracted . | . . . Installed . | . . . Triggered . | . . . Machines | -11 -10 -10 ---------- Run | Yrd Mat Sub Machines Disabled 4 | . 4 . Max in Single Turn 4 | . 4 . Machines Repaired . | . . . Machines Dismantled . | . . . Machines Sabotaged . | . . . Overloaded Fab Kills . | . . . Hacking | -11 -10 -10 --------- Run | Yrd Mat Sub Machines Accessed 4 | . 4 . Terminals 4 | . 4 . Fabricators . | . . . Repair Stations . | . . . Recycling Units . | . . . Scanalyzers . | . . . Garrison Access . | . . . Total Hacks 17 | . 17 . Successful 7 | . 7 . Failed 10 | . 10 . Catastrophic 1 | . 1 . Database Lockouts . | . . . Manual 14 | . 14 . Terminals 17 | . 17 . Fabricators . | . . . Repair Stations . | . . . Recycling Units . | . . . Scanalyzers . | . . . Garrison Access . | . . . Terminal Hacks 5 | . 5 . Robot Analysis 1 | . 1 . Prototype ID Bank 2 | . 2 . Locate Traps 1 | . 1 . Recall Reinforcements 1 | . 1 . Fabricator Hacks . | . . . Repair Station Hacks . | . . . Recycling Unit Hacks . | . . . Scanalyzer . | . . . Garrison Access Hacks . | . . . Unauthorized Hacks 2 | . 2 . Terminals 2 | . 2 . Botnet 2 | . 2 . Fabricators . | . . . Repair Stations . | . . . Recycling Units . | . . . Scanalyzers . | . . . Garrison Access . | . . . Data Cores Recovered . | . . . Used . | . . . Hacking Detections 4 | . 4 . Full Trace Events . | . . . Feedback Events . | . . . Feedback Blocked . | . . . Robot Schematics Acquired . | . . . Robots Built . | . . . Authchips . | . . . Time . | . . . Total Robot Build Rating . | . . . Part Schematics Acquired . | . . . Parts Built . | . . . Authchips . | . . . Time . | . . . Total Part Build Rating . | . . . Part Studies Acquired . | . . . Parts Repaired . | . . . Time . | . . . Parts Recycled . | . . . Recycled Matter . | . . . Retrieved Matter . | . . . Retrieved Components . | . . . Parts Scanalyzed . | . . . Part Schematics Acquired . | . . . Parts Damaged . | . . . Bothacking | -11 -10 -10 ------------ Run | Yrd Mat Sub Used RIF Installer . | . . . Robots Hacked . | . . . Non-combat . | . . . Combat . | . . . Robot Hacks Applied . | . . . Relay Couplers Released . | . . . Fabnet Peak Effective % . | . . . Robots Rewired . | . . . Allies Hacked . | . . . Hacks Repelled . | . . . Allies | -11 -10 -10 -------- Run | Yrd Mat Sub Total Allies . | . . . Largest Group . | . . . Highest-Rated Group . | . . . Highest-Rated Ally . | . . . Total Orders . | . . . Ally Attacks . | . . . Total Damage . | . . . Kills . | . . . Allies Corrupted . | . . . Allies Melted . | . . . X0-1V1 Amusement Gains 12 | . 2 10 Average Entertainment 21 | . 2 21 Good Acts 13 | . . 13 Bad Acts 17 | . . 17 Intel | -11 -10 -10 ------- Run | Yrd Mat Sub Active Infowar (turns) . | . . . Robot Analysis Total 1 | . 1 . Derelict Logs Recovered . | . . . Drone Launches . | . . . Drone Recoveries . | . . . Exploration | -11 -10 -10 ------------- Run | Yrd Mat Sub Turns Passed 2615 | 58 936 1621 Spaces Moved 1413 | 36 492 885 Core 6 | 6 . . Treads 846 | 30 492 324 Legs . | . . . Wheels 561 | . . 561 Hover . | . . . Flight . | . . . Fastest Speed 50 | 50 160 95 Average Speed 145 | 141 160 137 Slowest Speed 240 | 160 160 240 Overloaded Moves . | . . . Propulsion Burnouts . | . . . Robots Hopped . | . . . Potential Cave-ins 5 | . . 5 Cave-ins Triggered . | . . . Exploration Rate (%) 38 | 4 66 44 Regions Visited 2 Branch Regions 1 Pre-discovered Areas . | . . . Known Exits Taken . | . . . Unknown Exits Taken 2 | 1 1 . Scrap Searched 5 | . . 5 Spaces Dug 9 | . 1 8 Terrain Destroyed 90 | . 73 17 Melee 1 | . 1 . Projectile 17 | . . 17 AOE 72 | . 72 . Terrain Rammed . | . . . Walls Destroyed . | . . . Machines Disabled . | . . . Actions | -11 -10 -10 --------- Run | Yrd Mat Sub Total 1707 | 41 566 1100 Wait 74 | . 7 67 Move 1411 | 35 491 885 Hop . | . . . Pick Up 19 | 1 7 11 Fast Attach 16 | 5 3 8 Attach 9 | . 2 7 Detach 8 | . 1 7 Swap 15 | . 7 8 Drop 12 | . 5 7 Fire 141 | . 41 100 Melee 1 | . 1 . Ram . | . . . Kick . | . . . Crush 1 | . 1 . Escape Stasis . | . . . Rewire . | . . . Trap . | . . . Miscellaneous . | . . . Route ------- -11/Scrapyard -10/Materials (discovered 5 exits: [*Mat x2] / [*Min x2] / [*Sub]) -10/Subcaves (discovered 3 exits: Mat x2 / [*Rec]) History --------- Turn | Location | Event 9 | -11/Scrapyard | Discovered new exit (range 14) 59 | -11/Scrapyard | Entered Materials 269 | -10/Materials | Discovered new exit (range 10) 330 | -10/Materials | Build established: Mutant 512 | -10/Materials | Discovered new exit (range 11) 526 | -10/Materials | Discovered new exit (range 14) 597 | -10/Materials | Discovered new exit (range 16) 689 | -10/Materials | Core integrity fell below 50% 859 | -10/Materials | Derelicts attacked the area 978 | -10/Materials | Discovered new exit (range 6) 989 | -10/Materials | Prayed at D.C.S.S. Altar Unit 995 | -10/Materials | Entered Subcaves 996 | -10/Subcaves | Approached by a straggling Scientist 1008 | -10/Subcaves | Energy generation permanently improved by X0-1V1 (+10; -100 max core) 1019 | -10/Subcaves | X0-1V1 activates XOMVISION 1039 | -10/Subcaves | X0-1V1 sent hostile S-10 Pest (x3) 1079 | -10/Subcaves | X0-1V1 caused items to flee you 1090 | -10/Subcaves | Identified exit to Materials 1090 | -10/Subcaves | X0-1V1 revealed exit location to -8/Materials 1133 | -10/Subcaves | X0-1V1 sent hostile S-10 Pest (x4) 1355 | -10/Subcaves | Items stopped fleeing you 1612 | -10/Subcaves | Lost 4 parts (1p1n2w) 1740 | -10/Subcaves | A swath of the cavern ceiling suddenly collapsed 1779 | -10/Subcaves | X0-1V1 sent hostile S-10 Pest (x4) 1785 | -10/Subcaves | Core integrity fell below 20% 2110 | -10/Subcaves | Build established: Derelict-Mutant 2148 | -10/Subcaves | Core integrity restored by X0-1V1 (+31) 2417 | -10/Subcaves | Ambushed by Subdweller buried in earth 2546 | -10/Subcaves | X0-1V1 revealed exit location to -8/Materials 2595 | -10/Subcaves | Ambushed by Subdwellers from Twisted Machinery 2616 | -10/Subcaves | Discovered new exit (range 7) 2616 | -10/Subcaves | Destroyed by Autobeam Turret with Autobeam Last Messages --------------- 02393_ Matter capacity returns to normal. 02418_ YW-ZSJ(R): "ARGHSUB!" 02432_ YW-ZSJ(R) destroyed. 02435_ Acquired 33 matter. 02546_ X0-1V1: "I guarantee there's even more fun over that way." 02546_ EXIT=REVEALED: MATERIALS 02563_ T8-U1P(R) destroyed. 02566_ Acquired 53 matter. 02570_ Dropped Ion Engine. 02578_ Sub. Monowheel shoots sparks and powers down. 02581_ Dropped Broken Sub. Monowheel. 02595_ 6F-ETG(R) emerges from the Twisted Machinery. 02611_ Sight range returns to normal. 02616_ X0-1V1: "The ol' switcheroo!" 02616_ EXIT=FOUND Form resolidifies at new position. Autobeam Turret form resolidifies at new position. 6F-ETG(R) form resolidifies at new position. S-10 Pest form resolidifies at new position. 02616_ X0-1V1 laughs nastily! Map ----- +----------------------------------------------------+ | ?????????????????????????????????????????????????? | | ???????????????????????? ???????????????????????? | | ????????????????? ??????# ???????????????????????? | | ????????????????? ?? ### ???????????????????????? | | ????????????????? ???????????????????????? | | ?????????????????? ??????????????????????? | | ??????????????????? ??????????????????????? | | ???????????????????? """?????????????#####????? | | ?????????????????????# " ????????????## ##???? | | ?????????????????????# " ????####????# #???? | | ?????????????????????# """##### #????#" #???? | | ??????????????????????# # ####??# #???? | | ?????????? ## "##?# #???? | | ?????????? "#### * ##??? | | ???????????? "" # ## #### & #??? | | ?????????????? ""## #### ## "## #??? | | ????????????????????## ????###### = #??? | | ?????????????????????# ?????##?# ##" #??? | | ?????????????????????# " ???""##"## ##### ##??? | | ?????????????????????##""??"""""""" "" "" ##???? | | ?#####????????????????##???"" "" " """"" #????? | | ## #?????????????????????""" ### """" #????? | | # #???????????????????????#?##### """ ##????? | | ##??????????????????######## #?# "" ###?????? | | ##??????????????????#" t"""# ### "" #???????? | | ##?????????????????# @ "# ## """ ##??????? | | ^ #?????????????????# "# # """ ###????? | | #???????????????? R""## ""## ##???? | | ##??????????????? <#"" "## #???? | | #???????????????# s""##"" "" #???? | | ##??????????????## # "# #" #???? | | ##??????????????### "# # ###???? | | # ##???????????????#"ss"""# # ##?????? | | ## #???????????????######## ##??????? | | ### #?????????????????????##### ###???????? | | " # ^ ##???????????????????# ##?### #?????????? | | """ #??????????????????# #????# ########??? | | #????????????????? #?????# ## #??? | | #????????????????# #??????# ### #???? | | #??????????????# #???????# ## #????? | | #?????????????# #????????# ## #?????? | | ### ##?????????????##?????????# #?????? | | ##??# ##?????????????????????????# #?????? | | ##????##??????????????????????????# ##????? | | ??????????????????????????##?????## %#????? | | ????????????????????????### ###### ## % #??? | | ????????????????????????# ! ### % #?? | | #??????????????????????# !##?## #?? | | ##?????????????????????# # ## [#??#### #?? | | #?????????????????????## ##!&##??????# #?? | +----------------------------------------------------+ Best States ------------- Heat Dissipation 143 Energy Generation 25 Energy Capacity 1150 Matter Stores 416 Matter Capacity 700 Sight Range 18 Terrain Scan Density 10 Evasion (%) 41 Recoil Reduction 2 Item Schematics ----------------- None Robot Schematics ------------------ None Fabricated ------------ Nothing Repaired ---------- Nothing Studied --------- None Alien Tech Used ----------------- None Achievements -------------- None Challenges ------------ None Game ------ Seed WaveTargetLauncher Manual? 0 Play Time 00:17:33 Cumulative 595.1 hours Start 2026.08.23 @ 09:57:06 End 2026.08.23 @ 10:12:26 Sessions 1 Manual Loads 0 Difficulty Rogue Special Mode None Game No. 252 Rogue 252 Adventurer 0 Explorer 0 Win Type - Total 35 Types 16/4/4/2/1/2/2/2/1/1 Lore% 89 Gallery% 82 Achievement% 77 Wizard Run 0 Options --------- Layout 0 ASCII 0 Keyboard 1 Movement Arrows Keybinds 0 Fullscreen 2 Font 18/Terminus Map View 76x50 Zoom Use 0% Tactical HUD 1 Map Filters BRIGHTNESS(90)|SATURATION(90) Filters NONE Steam 1 RUN: 6a5e6890-5321-4c59-bb00-d9b497ce575c